fUSD/lending_fUSD_20250414
["ID","MTS","AMOUNT","RATE_DAILY","PERIOD"]
[357953221,1744614646896,-159.62602671,0.00019773,2]
[357953222,1744614646906,-500.0,0.00019773,2]
[357953223,1744614646915,-328.9385341,0.00019773,2]
[357953224,1744614646925,-2105.97382765,0.00019775,2]
[357953225,1744614646934,-2105.97382765,0.00019777,2]
[357953226,1744614646944,-333.66443937,0.00019782,2]
[357953227,1744614646954,-55538.35117381,0.00019783,2]
[357953228,1744614646964,-151.0,0.00019783,2]
[357953230,1744614646974,-229.18501,0.00019783,2]
[357953231,1744614646985,-172.495834,0.00019783,2]
[357953232,1744614646994,-229.18501,0.00019783,2]
[357953233,1744614647005,-151.0,0.00019783,2]
[357953234,1744614647014,-151.0,0.00019783,2]
[357953235,1744614647024,-154.939682,0.00019783,2]
[357953236,1744614647034,-2449.70551,0.00019783,2]
[357953237,1744614647045,-2449.70551,0.00019783,2]
[357953238,1744614647055,-153.502375,0.00019783,2]
[357953239,1744614647065,-583.408298,0.00019783,2]
[357953240,1744614647075,-583.408298,0.00019783,2]
[357953241,1744614647085,-31217.98264819,0.00019788,2]
[357953242,1744614647095,-646.93549482,0.00019791,2]
[357953243,1744614647105,-1039.97765586,0.00019792,2]
[357953244,1744614647115,-259.107592,0.00019795,2]
[357953245,1744614647125,-164.729142,0.00019795,2]
[357953246,1744614647134,-151.0,0.00019795,2]
[357953247,1744614647143,-151.0,0.00019795,2]
[357953248,1744614647153,-151.0,0.00019795,2]
[357953249,1744614647163,-156.040752,0.00019795,2]
[357953250,1744614647173,-151.0,0.00019795,2]
[357953251,1744614647182,-151.0,0.00019795,2]
[357953252,1744614647192,-190.729831,0.00019795,2]
[357953254,1744614647202,-190.729831,0.00019795,2]
[357953255,1744614647211,-151.0,0.00019795,2]
[357953256,1744614647222,-151.0,0.00019795,2]
[357953257,1744614647233,-151.0,0.00019795,2]
[357953258,1744614647243,-165.453965,0.00019795,2]
[357953259,1744614647252,-154.170274,0.00019795,2]
[357953260,1744614647262,-55538.35117381,0.00019795,2]
[357953261,1744614647271,-1624.9117654,0.00019799,2]
[357953262,1744614647281,-3166.80184535,0.000198,2]
[357953264,1744614647292,-1000.79690213,0.00019803,2]
[357953265,1744614647302,-4148.0,0.00019837,2]
[357953266,1744614647312,-630.725,0.00019837,2]
[357953267,1744614647322,-200.0,0.0001984,2]
[357953268,1744614647331,-2559.774,0.00019858,2]
[357953269,1744614647341,-152.0,0.00019858,2]
[357953270,1744614647350,-1123.32,0.00019863,2]
[357953271,1744614647360,-194.908,0.00019863,2]
[357953272,1744614647370,-500.0,0.00019863,2]
[357953273,1744614647380,-500.0,0.00019863,2]
[357953274,1744614647389,-500.0,0.00019863,2]
[357953275,1744614647403,-500.0,0.00019863,2]
[357953276,1744614647412,-500.0,0.00019863,2]
[357953277,1744614647422,-500.0,0.00019863,2]
[357953278,1744614647431,-500.0,0.00019863,2]
[357953279,1744614647441,-500.0,0.00019863,2]
[357953280,1744614647451,-500.0,0.00019863,2]
[357953281,1744614647460,-500.0,0.00019863,2]
[357953282,1744614647470,-500.0,0.00019863,2]
[357953283,1744614647483,-500.0,0.00019863,2]
[357953284,1744614647638,-500.0,0.00019863,2]
[357953285,1744614647650,-500.0,0.00019863,2]
[357953286,1744614647660,-500.0,0.00019863,2]
[357953287,1744614647670,-500.0,0.00019863,2]
[357953288,1744614647679,-500.0,0.00019863,2]
[357953289,1744614647688,-500.0,0.00019863,2]
[357953290,1744614647698,-500.0,0.00019863,2]
[357953291,1744614647707,-380.58486287,0.00019863,2]
[357953292,1744614647716,-500.0,0.00019863,2]
[357953293,1744614647726,-550.0,0.00019863,2]
[357953294,1744614647735,-630.0921904,0.00019863,2]
[357953295,1744614647745,-630.0921904,0.00019863,2]
[357953296,1744614647755,-630.0921904,0.00019863,2]
[357953297,1744614647765,-630.0921904,0.00019863,2]
[357953298,1744614647774,-630.0921904,0.00019863,2]
[357953299,1744614647783,-159.98608336,0.000199,2]
[357953300,1744614647794,-409.48630944,0.000199,2]
[357953301,1744614647803,-151.0,0.000199,2]
[357953302,1744614647813,-5800.0,0.000199,2]
[357953303,1744614647822,-216.71820789,0.000199,2]
[357953304,1744614647832,-181.60931761,0.000199,2]
[357953305,1744614647842,-188.96751297,0.000199,2]
[357953306,1744614647852,-500.19849729,0.000199,2]
[357953307,1744614647862,-168.90478809,0.000199,2]
[357953308,1744614647872,-387.32897571,0.00019939,2]
[357953309,1744614647882,-502.39296452,0.00019973,2]
[357953310,1744614647891,-8898.0,0.00019973,2]
[357953311,1744614647900,-151.0,0.00019973,2]
[357953312,1744614647910,-199.67832633,0.0001999,2]
[357953313,1744614647920,-199.67832633,0.0001999,2]
[357953314,1744614647930,-1287.0,0.00019998,2]
[357953315,1744614647940,-2047.0,0.00019998,2]
[357953316,1744614647950,-1328.0,0.00019998,2]
[357953317,1744614647960,-791.0,0.00019998,2]
[357953318,1744614647970,-545.0,0.00019998,2]
[357953319,1744614647980,-1438.0,0.00019998,2]
[357953320,1744614647990,-1279.0,0.00019998,2]
[357953321,1744614647999,-907.0,0.00019998,2]
[357953322,1744614648010,-402.82047754,0.00019999,2]
[357953323,1744614648019,-676.03545945,0.00019999,2]
[357953324,1744614648029,-300.0,0.00019999,2]
[357953325,1744614648039,-2000.0,0.00019999,2]
[357953326,1744614648050,-500.0,0.00019999,2]
[357953327,1744614648060,-595.54791246,0.00019999,2]
[357953328,1744614648070,-598.0,0.0002,2]
[357953329,1744614648080,-124667.4825971,0.0002,2]
[357953330,1744614648089,-262.45863438,0.0002,2]
[357953331,1744614648099,-266854.35288468,0.0002,2]
[357953332,1744614648311,-3997.606726,0.0002,2]
[357953333,1744614648324,-1144.63046961,0.0002,2]
[357953334,1744614648338,-3211.91999948,0.0002,2]
[357953335,1744614648354,-983.76745006,0.0002,2]
[357953336,1744614648365,-1378.62714229,0.0002,2]
[357953337,1744614648376,-19005.01724433,0.0002,2]
[357953338,1744614648403,-689.32368187,0.0002,2]
[357953339,1744614648414,-16822.12664002,0.0002,2]
[357953340,1744614648426,-2559.33589369,0.0002,2]
[357953341,1744614648438,-11568.6154122,0.0002,2]
[357953342,1744614648450,-4770.83653177,0.0002,2]
[357953343,1744614648461,-3600.0,0.0002,2]
[357953344,1744614648474,-218019.12331989,0.0002,2]
[357953345,1744614648486,-466.15448368,0.0002,2]
[357953346,1744614648503,-1337.54232414,0.0002,2]
[357953347,1744614648620,-670.62945932,0.00019261,2]
[357953348,1744614648631,-3288.7995763,0.00019626,2]
[357953349,1744614648641,-15233.01775681,0.0002,2]
[357953350,1744614648698,-1137.82083903,0.0002,2]
[357953351,1744614648710,-1242916.47253497,0.0002,2]
[357953352,1744614648722,-3284.44,0.0002,2]
[357953353,1744614648735,-3427.45944219,0.0002,2]
[357953354,1744614648827,-500.0,0.00019178,2]
[357953355,1744614648837,-153.38619871,0.0002,2]
[357953356,1744614648849,-602.63,0.0002,2]
[357953357,1744614649626,-509.98911011,0.0002,2]
[357953358,1744614649638,-493.09706335,0.0002,2]
[357953359,1744614649701,-500.0,0.00019178,2]
[357953360,1744614649712,-670.62945932,0.00019352,2]
[357953361,1744614649721,-3288.7995763,0.00019717,2]
[357953362,1744614649731,-6144.81096439,0.0002,2]
[357953363,1744614649742,-760.65999984,0.0002,2]
[357953364,1744614649754,-450.9,0.0002,2]
[357953365,1744614650083,-500.0,0.00019178,2]
[357953366,1744614650092,-701.79986,0.0002,2]
[357953367,1744614716006,159.934537,0.000221,30]
[357953368,1744615081863,350.0,0.00018749,12]
[357953370,1744615207912,163.333702,0.000245,30]
[357953371,1744615250528,152.034361,0.000245,30]
[357953372,1744615254739,159.934537,0.000245,30]
[357953373,1744615273534,5029.52258813,0.00018536,5]
[357953374,1744615280057,157.51,0.00018439,2]
[357953375,1744615280259,157.51,0.00018445,2]
[357953376,1744615280496,157.51,0.00018451,2]
[357953377,1744615280724,157.51,0.00018458,2]
[357953378,1744615280939,157.51,0.00018464,2]
[357953379,1744615281142,157.51,0.0001847,2]
[357953380,1744615281341,157.51,0.00018476,2]
[357953381,1744615281549,157.51,0.00018482,2]
[357953382,1744615281781,157.51,0.00018488,2]
[357953383,1744615282229,157.51,0.00018494,2]
[357953385,1744615376268,263.19,0.00018077,2]
[357953386,1744615392072,161.5,0.00018065,2]
[357953387,1744615392902,161.5,0.00024839,120]
[357953388,1744615433187,1333.0,0.00026137,120]
[357953392,1744615535439,490.32397947,0.0002,30]
[357953393,1744615536400,3921.15849118,0.0002,30]
[357953394,1744615550687,1192.54,0.00018057,2]
[357953395,1744615562672,608.17,0.00016129,2]
[357953396,1744615562884,608.17,0.00018393,2]
[357953397,1744615585732,1163.53445263,0.0002,5]
[357953399,1744615638872,1252.27018724,0.0002,5]
[357953400,1744615687144,7784.4864004,0.00018148,2]
[357953403,1744615797207,-300.0,0.00018147,2]
[357953405,1744615797241,-2069.12658159,0.00018148,2]
[357953408,1744615797287,-2369.12658159,0.00018148,2]
[357953409,1744615797373,-607.78548441,0.00018148,2]
[357953423,1744615832168,-300.0,0.00018147,2]
[357953424,1744615832182,-1285.97105457,0.00018148,2]
[357953425,1744615832194,-3180.4513027,0.00018148,2]
[357953426,1744615832206,-1124.49855846,0.00018148,2]
[357953427,1744615832218,-969.46082514,0.00018148,2]
[357953428,1744615832239,-1166.6660776,0.00018148,2]
[357953429,1744615832250,-1993.03746763,0.00018148,2]
[357953430,1744615832365,-1349.38966591,0.00018148,2]
[357953431,1744615832375,-157.51,0.00018501,2]
[357953432,1744615832385,-250.0,0.00018504,2]
[357953433,1744615832395,-157.51,0.00018507,2]
[357953434,1744615832404,-157.51,0.00018513,2]
[357953435,1744615832413,-157.51,0.00018519,2]
[357953436,1744615832424,-157.51,0.00018525,2]
[357953437,1744615832434,-157.51,0.00018531,2]
[357953438,1744615832443,-7.48988163,0.00018536,2]
[357953450,1744615832684,-192.51011837,0.00018536,2]
[357953453,1744615832694,-154.59,0.00018666,2]
[357953455,1744615832704,-238.20386392,0.00018694,2]
[357953478,1744615838197,-845.82613608,0.00018694,2]
[357953479,1744615838207,-250.0,0.0001874,2]
[357953480,1744615838216,-1366.88955202,0.00018741,2]
[357953481,1744615838226,-1000.0,0.00018758,2]
[357953482,1744615838235,-6326.17803749,0.00018876,2]
[357953483,1744615838245,-2068.35,0.00018925,2]
[357953484,1744615838254,-526.55003253,0.00018999,2]
[357953485,1744615838264,-1015.12,0.00019,2]
[357953486,1744615838274,-1015.12,0.00019,2]
[357953487,1744615838285,-1015.12,0.00019,2]
[357953488,1744615838295,-1015.12,0.00019,2]
[357953489,1744615838308,-1015.12,0.00019,2]
[357953490,1744615838317,-234.67555302,0.00019,2]
[357953491,1744615838327,-550.29516637,0.00019,2]
[357953492,1744615838336,-183.15,0.00019032,2]
[357953493,1744615838346,-619.0,0.00019077,2]
[357953494,1744615838355,-173.18927045,0.00019078,2]
[357953495,1744615838363,-642.92068479,0.00019078,2]
[357953496,1744615838372,-1394.92587146,0.00019078,2]
[357953497,1744615838380,-1089.29970467,0.00019078,2]
[357953498,1744615838390,-1000.0,0.00019078,2]
[357953499,1744615838398,-36083.0014,0.00019078,2]
[357953500,1744615838409,-187.0,0.000191,2]
[357953501,1744615838418,-1482.73103806,0.000191,2]
[357953502,1744615838428,-155.00875569,0.00019166,2]
[357953503,1744615838437,-668.65185757,0.00019166,2]
[357953504,1744615838447,-207.4,0.00019166,2]
[357953505,1744615838457,-1879.82,0.00019168,2]
[357953506,1744615838467,-1394.92587142,0.00019169,2]
[357953507,1744615838476,-1089.29970465,0.00019169,2]
[357953508,1744615838486,-504.53095867,0.00019173,2]
[357953509,1744615838495,-500.0,0.00019173,2]
[357953510,1744615838505,-500.0,0.00019173,2]
[357953511,1744615838514,-383.96168975,0.00019177,2]
[357953512,1744615838524,-183.07776595,0.00019177,2]
[357953513,1744615838533,-537.28793108,0.00019178,2]
[357953514,1744615838542,-511.10150525,0.00019178,2]
[357953515,1744615838552,-500.0,0.00019178,2]
[357953516,1744615838561,-151.0,0.00019178,2]
[357953517,1744615838571,-267.07383655,0.00019178,2]
[357953518,1744615838580,-500.0,0.00019178,2]
[357953519,1744615838589,-500.0,0.00019178,2]
[357953520,1744615838600,-300.90561804,0.00019178,2]
[357953521,1744615838610,-500.0,0.00019178,2]
[357953523,1744615838619,-500.0,0.00019178,2]
[357953525,1744615838629,-500.0,0.00019178,2]
[357953527,1744615838639,-500.0,0.00019178,2]
[357953528,1744615838648,-500.0,0.00019178,2]
[357953530,1744615838658,-500.0,0.00019178,2]
[357953532,1744615838668,-626.60816572,0.00019178,2]
[357953533,1744615838678,-460.26216967,0.00019178,2]
[357953534,1744615838687,-538.68234339,0.00019178,2]
[357953535,1744615838696,-509.70222696,0.00019178,2]
[357953536,1744615838706,-605.10716523,0.00019178,2]
[357953537,1744615838715,-216.02,0.00019178,2]
[357953538,1744615838725,-500.0,0.00019178,2]
[357953539,1744615838735,-511.39764188,0.00019178,2]
[357953540,1744615838744,-299.4431764,0.00019178,2]
[357953541,1744615838754,-529.97231892,0.00019178,2]
[357953542,1744615838764,-568.89173101,0.00019178,2]
[357953543,1744615838778,-521.80022286,0.00019178,2]
[357953544,1744615838787,-521.11706043,0.00019178,2]
[357953546,1744615838797,-513.20266798,0.00019178,2]
[357953548,1744615838807,-518.57703926,0.00019178,2]
[357953550,1744615838816,-550.11733968,0.00019178,2]
[357953551,1744615838825,-532.92732066,0.00019178,2]
[357953553,1744615838835,-552.36,0.00019178,2]
[357953554,1744615838844,-500.0,0.00019178,2]
[357953555,1744615838855,-500.0,0.00019178,2]
[357953556,1744615838864,-500.0,0.00019178,2]
[357953557,1744615838874,-565.57103892,0.00019178,2]
[357953558,1744615838883,-511.34136429,0.00019178,2]
[357953559,1744615838893,-500.0,0.00019178,2]
[357953560,1744615838902,-500.0,0.00019178,2]
[357953561,1744615838912,-500.0,0.00019178,2]
[357953562,1744615838922,-184.18302994,0.00019178,2]
[357953563,1744615838931,-500.0,0.00019178,2]
[357953564,1744615838941,-157.85098003,0.00019178,2]
[357953565,1744615838950,-575.31,0.00019178,2]
[357953566,1744615838959,-500.0,0.00019178,2]
[357953567,1744615838969,-500.0,0.00019178,2]
[357953568,1744615838978,-547.71,0.00019178,2]
[357953569,1744615838988,-500.0,0.00019178,2]
[357953570,1744615838998,-506.08,0.00019178,2]
[357953571,1744615839007,-531.93844187,0.00019178,2]
[357953572,1744615839017,-500.0,0.00019178,2]
[357953573,1744615839027,-531.75692399,0.00019178,2]
[357953574,1744615839036,-500.0,0.00019178,2]
[357953575,1744615839045,-2000.0,0.00019178,2]
[357953576,1744615839055,-500.0,0.00019178,2]
[357953577,1744615839064,-500.0,0.00019178,2]
[357953578,1744615839074,-500.0,0.00019178,2]
[357953579,1744615839084,-500.0,0.00019178,2]
[357953580,1744615839094,-500.0,0.00019178,2]
[357953581,1744615839103,-500.0,0.00019178,2]
[357953582,1744615839113,-500.0,0.00019178,2]
[357953583,1744615839122,-565.29805731,0.00019178,2]
[357953584,1744615839131,-500.0,0.00019178,2]
[357953585,1744615839141,-512.54242086,0.00019178,2]
[357953586,1744615839150,-265.44678863,0.00019178,2]
[357953587,1744615839160,-500.0,0.00019178,2]
[357953588,1744615839170,-500.0,0.00019178,2]
[357953589,1744615839180,-500.0,0.00019178,2]
[357953590,1744615839189,-500.0,0.00019178,2]
[357953591,1744615839199,-500.0,0.00019178,2]
[357953592,1744615839208,-500.0,0.00019178,2]
[357953593,1744615839218,-504.40563318,0.00019178,2]
[357953594,1744615839227,-244.47272881,0.00019178,2]
[357953595,1744615839237,-642.29442204,0.00019178,2]
[357953596,1744615839247,-500.0,0.00019178,2]
[357953597,1744615839256,-502.52705317,0.00019178,2]
[357953598,1744615839266,-500.0,0.00019178,2]
[357953599,1744615839275,-525.00628129,0.00019178,2]
[357953600,1744615839284,-508.81839912,0.00019178,2]
[357953601,1744615839293,-500.0,0.00019178,2]
[357953602,1744615839303,-500.0,0.00019178,2]
[357953603,1744615839312,-500.0,0.00019178,2]
[357953604,1744615839321,-535.9947423,0.00019178,2]
[357953605,1744615839331,-500.0,0.00019178,2]
[357953606,1744615839340,-500.0,0.00019178,2]
[357953607,1744615839349,-538.93668904,0.00019178,2]
[357953608,1744615839358,-500.0,0.00019178,2]
[357953609,1744615839367,-500.0,0.00019178,2]
[357953610,1744615839376,-500.0,0.00019178,2]
[357953611,1744615839385,-500.0,0.00019178,2]
[357953612,1744615839395,-609.11092875,0.00019178,2]
[357953613,1744615839403,-500.0,0.00019178,2]
[357953614,1744615839413,-500.0,0.00019178,2]
[357953615,1744615839422,-500.0,0.00019178,2]
[357953616,1744615839431,-567.21609205,0.00019178,2]
[357953617,1744615839441,-500.0,0.00019178,2]
[357953618,1744615839450,-500.0,0.00019178,2]
[357953619,1744615839460,-500.0,0.00019178,2]
[357953620,1744615839469,-500.0,0.00019178,2]
[357953621,1744615839479,-500.0,0.00019178,2]
[357953622,1744615839489,-500.0,0.00019178,2]
[357953623,1744615839498,-500.0,0.00019178,2]
[357953624,1744615839507,-500.0,0.00019178,2]
[357953625,1744615839517,-500.0,0.00019178,2]
[357953626,1744615839526,-545.76889096,0.00019178,2]
[357953627,1744615839536,-513.62901587,0.00019178,2]
[357953628,1744615839545,-286.51135386,0.00019178,2]
[357953629,1744615839554,-500.0,0.00019178,2]
[357953630,1744615839564,-500.0,0.00019178,2]
[357953631,1744615839573,-500.0,0.00019178,2]
[357953632,1744615839582,-531.87471283,0.00019178,2]
[357953633,1744615839593,-500.0,0.00019178,2]
[357953634,1744615839602,-500.0,0.00019178,2]
[357953635,1744615839611,-500.0,0.00019178,2]
[357953636,1744615839621,-500.0,0.00019178,2]
[357953637,1744615839631,-506.78875321,0.00019178,2]
[357953638,1744615839640,-500.0,0.00019178,2]
[357953639,1744615839650,-500.0,0.00019178,2]
[357953640,1744615839659,-500.0,0.00019178,2]
[357953641,1744615839669,-500.0,0.00019178,2]
[357953642,1744615839678,-534.79548534,0.00019178,2]
[357953643,1744615839688,-507.2482384,0.00019178,2]
[357953644,1744615839697,-500.0,0.00019178,2]
[357953645,1744615839707,-500.0,0.00019178,2]
[357953646,1744615839716,-576.5688956,0.00019178,2]
[357953647,1744615839725,-500.0,0.00019178,2]
[357953648,1744615839735,-500.0,0.00019178,2]
[357953649,1744615839744,-500.0,0.00019178,2]
[357953650,1744615839754,-500.0,0.00019178,2]
[357953651,1744615839766,-501.05464491,0.00019178,2]
[357953652,1744615839778,-560.18171021,0.00019178,2]
[357953653,1744615839788,-502.03568858,0.00019178,2]
[357953654,1744615839798,-500.0,0.00019178,2]
[357953655,1744615839808,-533.20345108,0.00019178,2]
[357953656,1744615839819,-500.0,0.00019178,2]
[357953657,1744615839828,-501.86357277,0.00019178,2]
[357953658,1744615839838,-500.0,0.00019178,2]
[357953659,1744615839850,-539.9119914,0.00019178,2]
[357953660,1744615839860,-500.0,0.00019178,2]
[357953661,1744615839869,-500.0,0.00019178,2]
[357953662,1744615839879,-500.0,0.00019178,2]
[357953663,1744615839889,-500.0,0.00019178,2]
[357953664,1744615839899,-500.0,0.00019178,2]
[357953665,1744615839908,-500.0,0.00019178,2]
[357953666,1744615839918,-500.0,0.00019178,2]
[357953667,1744615839928,-500.0,0.00019178,2]
[357953668,1744615839938,-500.0,0.00019178,2]
[357953669,1744615839947,-500.0,0.00019178,2]
[357953670,1744615839957,-500.0,0.00019178,2]
[357953671,1744615839967,-500.0,0.00019178,2]
[357953672,1744615839976,-535.1204369,0.00019178,2]
[357953673,1744615839986,-500.0,0.00019178,2]
[357953674,1744615839996,-500.0,0.00019178,2]
[357953675,1744615840006,-500.0,0.00019178,2]
[357953676,1744615840015,-500.0,0.00019178,2]
[357953678,1744615840025,-500.0,0.00019178,2]
[357953679,1744615840033,-500.0,0.00019178,2]
[357953680,1744615840042,-500.0,0.00019178,2]
[357953681,1744615840052,-500.0,0.00019178,2]
[357953682,1744615840060,-541.79650456,0.00019178,2]
[357953683,1744615840069,-500.0,0.00019178,2]
[357953684,1744615840078,-500.0,0.00019178,2]
[357953686,1744615840088,-500.0,0.00019178,2]
[357953687,1744615840101,-567.80300241,0.00019178,2]
[357953688,1744615840111,-500.0,0.00019178,2]
[357953689,1744615840121,-500.0,0.00019178,2]
[357953690,1744615840132,-527.66009093,0.00019178,2]
[357953691,1744615840143,-751.81,0.00019178,2]
[357953692,1744615840153,-631.06,0.00019178,2]
[357953693,1744615840163,-500.0,0.00019178,2]
[357953694,1744615840174,-430.6195149,0.00019178,2]
[357953695,1744615840197,-500.0,0.00019178,2]
[357953696,1744615840216,-567.92942306,0.00019178,2]
[357953697,1744615840227,-551.45660331,0.00019178,2]
[357953698,1744615840237,-500.0,0.00019178,2]
[357953699,1744615840248,-563.85659205,0.00019178,2]
[357953700,1744615840259,-500.0,0.00019178,2]
[357953701,1744615840268,-500.0,0.00019178,2]
[357953702,1744615840278,-592.76663329,0.00019178,2]
[357953703,1744615840288,-500.0,0.00019178,2]
[357953704,1744615840298,-500.0,0.00019178,2]
[357953705,1744615840309,-571.87753756,0.00019178,2]
[357953706,1744615840319,-542.69282103,0.00019178,2]
[357953707,1744615840330,-500.0,0.00019178,2]
[357953708,1744615840339,-500.0,0.00019178,2]
[357953709,1744615840351,-509.46110764,0.00019178,2]
[357953710,1744615840360,-538.16536534,0.00019178,2]
[357953711,1744615840370,-523.73605321,0.00019178,2]
[357953712,1744615840380,-500.0,0.00019178,2]
[357953713,1744615840390,-500.0,0.00019178,2]
[357953714,1744615840399,-500.0,0.00019178,2]
[357953715,1744615840409,-500.0,0.00019178,2]
[357953716,1744615840419,-500.0,0.00019178,2]
[357953717,1744615840429,-500.0,0.00019178,2]
[357953718,1744615840439,-500.0,0.00019178,2]
[357953719,1744615840448,-500.0,0.00019178,2]
[357953720,1744615840458,-500.0,0.00019178,2]
[357953721,1744615840601,-500.0,0.00019178,2]
[357953722,1744615840639,-500.0,0.00019178,2]
[357953723,1744615840649,-500.0,0.00019178,2]
[357953724,1744615840659,-500.0,0.00019178,2]
[357953725,1744615840669,-500.0,0.00019178,2]
[357953726,1744615840678,-500.0,0.00019178,2]
[357953727,1744615840688,-557.5726685,0.00019178,2]
[357953728,1744615840698,-500.0,0.00019178,2]
[357953729,1744615840709,-500.0,0.00019178,2]
[357953730,1744615840718,-500.0,0.00019178,2]
[357953731,1744615840728,-509.77,0.00019178,2]
[357953732,1744615840738,-500.0,0.00019178,2]
[357953733,1744615840748,-538.19634373,0.00019178,2]
[357953734,1744615840757,-500.0,0.00019178,2]
[357953735,1744615840768,-500.0,0.00019178,2]
[357953736,1744615840780,-500.0,0.00019178,2]
[357953737,1744615840790,-500.0,0.00019178,2]
[357953738,1744615840799,-500.0,0.00019178,2]
[357953739,1744615840809,-500.0,0.00019178,2]
[357953740,1744615840819,-479.90697927,0.00019178,2]
[357953741,1744615840829,-522.82652866,0.00019178,2]
[357953742,1744615840839,-500.0,0.00019178,2]
[357953743,1744615840851,-500.0,0.00019178,2]
[357953744,1744615840861,-500.0,0.00019178,2]
[357953745,1744615840872,-560.51991039,0.00019178,2]
[357953746,1744615840881,-500.0,0.00019178,2]
[357953747,1744615840891,-621.74,0.00019178,2]
[357953748,1744615840901,-548.53,0.00019178,2]
[357953749,1744615840910,-500.0,0.00019178,2]
[357953750,1744615840920,-500.0,0.00019178,2]
[357953751,1744615840931,-500.0,0.00019178,2]
[357953752,1744615840943,-500.0,0.00019178,2]
[357953753,1744615840953,-500.0,0.00019178,2]
[357953754,1744615840963,-500.0,0.00019178,2]
[357953755,1744615840974,-500.0,0.00019178,2]
[357953756,1744615840984,-500.0,0.00019178,2]
[357953757,1744615840994,-500.0,0.00019178,2]
[357953758,1744615841004,-500.0,0.00019178,2]
[357953759,1744615841014,-500.0,0.00019178,2]
[357953760,1744615841023,-500.0,0.00019178,2]
[357953761,1744615841032,-545.44153636,0.00019178,2]
[357953762,1744615841042,-500.0,0.00019178,2]
[357953763,1744615841052,-500.0,0.00019178,2]
[357953764,1744615841062,-500.0,0.00019178,2]
[357953765,1744615841072,-500.0,0.00019178,2]
[357953766,1744615841082,-500.0,0.00019178,2]
[357953767,1744615841092,-150.0,0.00019178,2]
[357953768,1744615841104,-500.0,0.00019178,2]
[357953769,1744615841114,-500.0,0.00019178,2]
[357953770,1744615841125,-500.0,0.00019178,2]
[357953771,1744615841134,-500.0,0.00019178,2]
[357953772,1744615841145,-500.0,0.00019178,2]
[357953773,1744615841155,-500.0,0.00019178,2]
[357953774,1744615841165,-500.0,0.00019178,2]
[357953775,1744615841176,-500.0,0.00019178,2]
[357953776,1744615841187,-500.0,0.00019178,2]
[357953777,1744615841197,-500.0,0.00019178,2]
[357953778,1744615841207,-606.42386089,0.00019178,2]
[357953779,1744615841217,-500.0,0.00019178,2]
[357953780,1744615841227,-514.27471308,0.00019178,2]
[357953781,1744615841237,-500.0,0.00019178,2]
[357953782,1744615841247,-500.0,0.00019178,2]
[357953783,1744615841256,-500.0,0.00019178,2]
[357953784,1744615841266,-538.43862921,0.00019178,2]
[357953785,1744615841275,-507.601638,0.00019178,2]
[357953786,1744615841285,-500.0,0.00019178,2]
[357953787,1744615841295,-500.0,0.00019178,2]
[357953788,1744615841305,-500.0,0.00019178,2]
[357953789,1744615841315,-500.0,0.00019178,2]
[357953790,1744615841324,-500.0,0.00019178,2]
[357953791,1744615841334,-500.0,0.00019178,2]
[357953792,1744615841344,-167.11456809,0.00019178,2]
[357953793,1744615841357,-500.0,0.00019178,2]
[357953794,1744615841367,-185.36748913,0.00019178,2]